bitfinex/quotes_ETHUSD_20250426
["timestamp","ask_amount","ask_price","bid_price","bid_amount"]
[1745658200825,9.52997455,1805.4,1805.3,5.069962]
[1745658201592,10.07997455,1805.4,1805.3,5.069962]
[1745658201848,12.52826088,1805.4,1805.3,5.069962]
[1745658202147,1.5854,1805.2,1804.6,5.069962]
[1745658202443,2.44828633,1805.0,1804.6,5.069962]
[1745658202622,3.0,1804.8,1804.6,5.069962]
[1745658202945,1.5854,1804.7,1804.3,5.074962]
[1745658203099,2.28876863,1804.7,1804.3,5.074962]
[1745658203438,0.70336863,1804.7,1804.3,5.074962]
[1745658203653,1.0354,1804.6,1804.3,5.074962]
[1745658204304,7.03368633,1804.4,1804.3,5.074962]
[1745658204640,9.121,1804.4,1804.3,5.074962]
[1745658205014,9.121,1804.4,1804.3,5.646162]
[1745658205704,6.122,1804.9,1804.3,5.646162]
[1745658205903,3.0,1804.8,1804.4,5.6345782]
[1745658206139,6.122,1804.9,1804.5,5.069962]
[1745658206336,3.0,1804.8,1804.6,0.5712]
[1745658206543,3.42336194,1804.8,1804.6,0.5712]
[1745658207354,3.42336194,1804.8,1804.5,5.069962]
[1745658210136,3.42336194,1804.8,1804.5,5.6340782]
[1745658210843,3.42336194,1804.8,1804.5,5.069962]
[1745658213022,5.87164827,1804.8,1804.5,5.069962]
[1745658213226,1.0354,1804.7,1804.5,5.069962]
[1745658213852,5.87164827,1804.8,1804.5,5.069962]
[1745658213853,3.42336194,1804.8,1804.5,5.069962]
[1745658214026,3.42336194,1804.8,1804.6,0.4701]
[1745658214360,6.123,1804.8,1804.7,5.069962]
[1745658214559,6.123,1805.0,1804.8,6.01069907]
[1745658214713,6.123,1805.0,1804.8,6.01064467]
[1745658214913,9.123,1805.0,1804.9,5.54047315]
[1745658215113,6.123,1805.2,1805.0,5.54008912]
[1745658215412,9.123,1805.2,1805.1,5.069962]
[1745658215645,9.123,1805.2,1805.1,5.540062]
[1745658216424,9.54553638,1805.2,1805.1,5.540062]
[1745658217754,9.54553638,1805.2,1805.1,5.069962]
[1745658219127,12.54382271,1805.2,1805.1,5.069962]
[1745658219448,3.55,1805.1,1804.8,5.069962]
[1745658220838,0.55,1804.9,1804.8,5.069962]
[1745658221238,3.48938633,1805.0,1804.8,5.069962]
[1745658221645,1.0411,1805.0,1804.8,5.069962]
[1745658221949,3.0,1805.1,1804.8,5.069962]
[1745658222149,4.4943415,1805.1,1804.8,5.069962]
[1745658223848,7.58663638,1805.2,1804.8,5.069962]
[1745658224047,0.42253638,1805.2,1804.9,5.540062]
[1745658224267,6.122,1805.1,1804.9,11.08040357]
[1745658224443,3.0,1805.0,1804.9,11.08040357]
[1745658224818,3.0,1805.0,1804.9,5.540062]
[1745658225420,6.122,1805.1,1804.9,5.069962]
[1745658225821,3.0,1805.0,1804.9,5.069962]
[1745658226467,3.0,1805.0,1804.9,11.08053515]
[1745658226631,3.0,1805.0,1804.9,7.20217645]
[1745658226833,3.0,1805.0,1804.9,5.540062]
[1745658227255,4.0322,1805.0,1804.9,5.069962]
[1745658227451,7.03048633,1805.0,1804.9,5.069962]
[1745658228373,4.0322,1805.0,1804.9,5.069962]
[1745658229243,3.0,1805.0,1804.9,5.069962]
[1745658229946,4.4622,1805.0,1804.9,5.069962]
[1745658236248,0.55,1804.7,1804.4,4.12236604]
[1745658236448,3.55,1804.5,1804.4,4.12236604]
[1745658237685,3.96623027,1804.5,1804.4,4.12236604]
[1745658237887,5.32134193,1804.5,1804.4,4.12236604]
[1745658242580,5.32134193,1804.5,1804.4,4.22722843]
[1745658243169,5.32134193,1804.5,1804.4,4.12236604]
[1745658243382,5.32134193,1804.5,1804.4,4.24511328]
[1745658245880,5.32134193,1804.5,1804.4,4.12236604]
[1745658246081,5.32134193,1804.5,1804.4,4.24511328]
[1745658247365,0.55,1804.4,1804.1,0.1]
[1745658247509,0.55,1804.4,1804.0,4.12236604]
[1745658247510,1.47166792,1804.3,1804.0,4.12236604]
[1745658247714,0.9748,1804.3,1804.0,4.12236604]
[1745658248414,1.611,1804.0,1803.9,0.4109827]
[1745658248716,16.087181,1804.0,1803.9,0.4109827]
[1745658249010,10.715,1804.0,1803.9,0.4109827]
[1745658249172,3.0,1804.0,1803.9,4.53334874]
[1745658249372,0.41623027,1804.5,1804.0,5.94511929]
[1745658249580,6.104,1804.5,1804.1,9.66525621]
[1745658249787,3.0,1804.4,1804.2,0.4021]
[1745658250305,3.0,1804.4,1804.1,9.7704167]
[1745658250306,3.41964467,1804.4,1804.1,4.12236604]
[1745658250882,16.632,1805.0,1804.5,0.4021]
[1745658251090,16.632,1805.0,1804.8,0.4021]
[1745658251292,16.632,1805.0,1804.6,12.1177628]
[1745658251293,17.05667658,1805.0,1804.9,4.12236604]
[1745658251495,18.11767658,1805.0,1804.9,4.12236604]
[1745658251686,21.66767658,1805.0,1804.9,4.12236604]
[1745658251884,3.55,1804.9,1804.3,4.12236604]
[1745658252218,3.55,1804.7,1804.3,4.12236604]
[1745658252420,1.061,1804.6,1803.9,0.8130827]
[1745658252622,1.061,1804.6,1804.0,4.12236604]
[1745658253125,1.061,1804.6,1804.0,3.12236604]
[1745658253305,1.061,1804.6,1804.0,4.07023831]
[1745658253504,0.55,1804.5,1804.0,3.12236604]
[1745658255422,0.55,1804.3,1804.0,3.12236604]
[1745658255716,0.55,1804.3,1803.9,0.4109827]
[1745658255717,4.0013,1804.1,1803.9,0.4109827]
[1745658255881,5.42670911,1804.1,1803.9,0.4109827]
[1745658256082,0.55,1804.0,1803.9,0.4109827]
[1745658256282,17.848323,1804.0,1803.9,0.4109827]
[1745658256615,6.559505,1804.0,1803.9,0.4109827]
[1745658256818,19.255434,1804.0,1803.9,0.4109827]
[1745658257216,21.19021631,1804.0,1803.9,0.4109827]
[1745658257521,8.28288431,1804.0,1803.9,0.4109827]
[1745658258020,7.73288431,1804.0,1803.9,0.4109827]
[1745658258218,6.086,1804.0,1803.9,0.4109827]
[1745658258388,9.086,1804.0,1803.9,0.4109827]
[1745658258781,3.0,1804.0,1803.9,0.4109827]
[1745658259016,9.086,1804.0,1803.9,0.4109827]
[1745658260427,1.0174,1803.9,1802.1,0.5109827]
[1745658260626,1.0174,1802.4,1801.8,0.28021925]
[1745658260827,3.0,1802.2,1801.1,0.05]
[1745658261121,0.3,1802.1,1801.1,0.05]
[1745658261624,0.3,1802.1,1801.2,8.00594888]
[1745658261920,0.3,1802.1,1801.2,8.00584425]
[1745658262124,0.3,1802.1,1801.4,0.5077]
[1745658262355,0.51118186,1802.2,1801.9,2.45412236]
[1745658262486,0.51118186,1802.2,1801.6,5.55062166]
[1745658262487,1.4243993,1802.9,1802.0,0.5077]
[1745658262690,4.0174,1802.9,1801.5,0.5077]
[1745658262886,2.45412236,1802.7,1801.5,0.5077]
[1745658263124,1.0368,1802.4,1801.2,0.5077]
[1745658263309,3.0,1802.3,1801.2,0.5077]
[1745658263516,0.3,1802.2,1801.2,0.5077]
[1745658263689,3.0,1802.0,1801.2,0.5077]
[1745658263997,3.0,1802.0,1801.3,5.55638425]
[1745658264324,3.0,1802.0,1801.3,0.005]
[1745658264823,3.0,1802.0,1801.7,6.05784337]
[1745658265026,0.42384324,1802.1,1801.7,7.21867083]
[1745658265245,16.642,1802.9,1801.8,2.71963205]
[1745658265246,1.0368,1802.7,1801.8,2.71963205]
[1745658265530,3.0,1802.6,1801.9,3.12236604]
[1745658266137,3.0,1802.6,1802.0,0.12373006]
[1745658267531,1.075,1802.0,1801.3,0.005]
[1745658267845,3.0,1801.8,1801.3,0.005]
[1745658268928,3.0,1801.6,1801.3,0.005]
[1745658269560,3.0,1801.4,1801.3,0.005]
[1745658269759,14.148305,1801.4,1801.3,0.005]
[1745658269964,15.0001835,1801.4,1801.3,0.005]
[1745658270273,6.5533135,1801.4,1801.3,0.005]
[1745658270474,0.55,1801.4,1801.3,0.005]
[1745658271160,1.075,1801.5,1801.3,0.005]
[1745658271368,3.55,1801.6,1801.3,0.005]
[1745658272235,3.55,1801.4,1801.3,0.005]
[1745658272551,1.075,1801.5,1801.3,0.005]
[1745658272760,0.55,1801.4,1801.3,0.005]
[1745658273063,3.55,1801.4,1801.3,0.005]
[1745658273263,3.0,1801.4,1801.3,0.005]
[1745658273560,3.55,1801.4,1801.3,0.005]
[1745658275162,15.134513,1801.4,1801.3,0.005]
[1745658275369,6.613825,1801.4,1801.3,0.005]
[1745658275944,3.55,1801.4,1801.3,0.005]
[1745658276145,4.0125,1801.4,1801.3,0.005]
[1745658276336,3.4625,1801.4,1801.3,0.005]
[1745658276832,4.0125,1801.4,1801.3,0.005]
[1745658277269,3.0,1801.4,1801.3,0.005]
[1745658277629,0.55,1801.6,1801.3,0.005]
[1745658278088,6.091,1801.7,1801.3,0.005]
[1745658278265,16.65,1802.0,1801.5,5.55090917]
[1745658278573,7.1431,1802.1,1801.6,8.67282384]
[1745658278778,6.094,1802.1,1801.7,5.55030457]
[1745658279077,0.41266327,1802.4,1801.9,6.18974053]
[1745658279247,6.094,1802.6,1802.0,8.67153356]
[1745658279578,6.094,1802.6,1802.1,5.54907931]
[1745658279776,6.094,1802.6,1802.0,3.12236604]
[1745658280081,1.0491,1802.4,1802.0,3.12236604]
[1745658280580,0.55,1802.3,1801.6,3.12236604]
[1745658284569,1.0491,1802.4,1801.6,3.12236604]
[1745658284882,3.50717635,1802.5,1801.9,0.6403]
[1745658285086,3.50717635,1802.5,1802.0,5.54912018]
[1745658285087,0.50717635,1802.5,1802.0,5.54912018]
[1745658285272,3.50717635,1802.5,1802.1,0.55491202]
[1745658285589,6.094,1802.6,1802.2,0.6403]
[1745658285773,6.094,1802.6,1802.3,11.09643272]
[1745658285980,6.094,1802.6,1802.3,3.12236604]
[1745658286193,6.094,1802.6,1802.3,8.67083015]
[1745658286351,6.094,1802.6,1802.4,5.54809752]
[1745658286552,6.093,1803.0,1802.6,6.18776902]
[1745658286752,6.093,1803.0,1802.6,3.76266604]
[1745658286949,6.087,1803.3,1802.9,5.54661019]
[1745658287150,6.087,1803.3,1803.0,6.18644257]
[1745658287968,6.087,1803.3,1803.0,6.18645787]
[1745658288272,6.087,1803.3,1803.0,2.12583057]
[1745658288688,6.087,1803.3,1803.0,7.67196818]
[1745658289100,6.087,1803.7,1803.0,7.67187828]
[1745658289409,3.51119378,1803.6,1803.1,3.12236604]
[1745658289776,0.55,1803.5,1803.1,3.12236604]
[1745658291487,0.55,1803.3,1803.1,3.12236604]
[1745658291682,3.0,1803.1,1802.7,3.76266604]
[1745658291974,3.0,1803.0,1802.7,3.76266604]
[1745658292173,4.41969378,1803.0,1802.7,3.12236604]
[1745658292867,3.9085,1803.0,1802.7,3.12236604]
[1745658293070,3.0,1803.0,1802.7,3.12236604]
[1745658294606,3.51128832,1803.0,1802.7,3.12236604]
[1745658294800,0.55,1802.9,1802.4,0.6403]
[1745658297405,3.51128832,1803.0,1802.4,0.6403]
[1745658297705,0.35112883,1802.9,1802.4,0.6403]
[1745658300304,0.55,1802.8,1802.2,0.6403]
[1745658300513,0.55,1802.8,1802.0,3.12236604]
[1745658301709,0.55,1802.8,1802.1,0.6596]
[1745658302083,1.39442883,1802.9,1802.1,0.6596]
[1745658302290,3.0,1802.7,1802.1,0.6596]
[1745658303806,6.085,1802.8,1802.2,3.78196604]
[1745658303996,6.085,1802.8,1802.3,1.0377966]
[1745658304311,3.0,1803.0,1802.3,1.0377966]
[1745658304530,3.0,1803.0,1802.4,0.6596]
[1745658304820,6.085,1803.1,1802.4,0.6596]
[1745658305516,3.0,1803.0,1802.4,0.6596]
[1745658307439,3.5137537,1803.0,1802.4,0.6596]
[1745658307983,3.5137537,1803.0,1802.5,3.12236604]
[1745658308180,3.5137537,1803.0,1802.5,3.50056264]
[1745658309120,3.5137537,1803.0,1802.6,3.78196604]
[1745658309287,3.5137537,1803.0,1802.7,3.12236604]
[1745658310988,4.5355537,1803.0,1802.7,3.12236604]
[1745658311404,0.5137537,1802.9,1802.7,3.12236604]
[1745658311697,0.96730907,1802.9,1802.7,3.12236604]
[1745658312328,0.5137537,1802.9,1802.7,3.12236604]
[1745658312711,3.5137537,1803.0,1802.7,3.12236604]
[1745658312912,0.5137537,1803.0,1802.8,3.78196604]
[1745658313215,0.5137537,1803.0,1802.9,3.12236604]
[1745658313537,0.1,1803.9,1803.1,3.12236604]
[1745658313708,0.51567263,1803.8,1803.2,4.09420264]
[1745658313903,0.1,1803.9,1803.2,3.43460264]
[1745658313904,0.51567263,1803.7,1803.2,3.43460264]
[1745658314247,0.51567263,1803.8,1803.3,0.6596]
[1745658314592,0.51567263,1803.7,1803.3,0.6596]
[1745658314833,1.50737263,1803.7,1803.4,3.12236604]
[1745658315132,3.0,1803.5,1803.0,0.6596]
[1745658315430,3.9917,1803.3,1803.0,3.12236604]
[1745658315627,0.51567263,1803.2,1803.0,3.12236604]
[1745658316326,0.51567263,1803.1,1803.0,3.12236604]
[1745658317495,0.51567263,1803.2,1803.0,3.12236604]
[1745658318119,0.51567263,1803.1,1803.0,3.12236604]
[1745658323042,6.178,1803.9,1803.3,0.6596]
[1745658323361,3.0,1803.8,1803.4,2.60669341]
[1745658324038,3.0,1803.8,1803.5,2.60669341]
[1745658324238,6.178,1803.9,1803.5,2.60669341]
[1745658324428,6.7958,1803.9,1803.5,2.60669341]
[1745658324803,3.0,1803.8,1803.5,2.60669341]
[1745658326751,6.178,1803.9,1803.6,0.6596]
[1745658327927,3.0,1803.8,1803.5,2.60669341]
[1745658328111,3.9945,1803.8,1803.5,2.60669341]
[1745658328315,0.39945,1803.7,1803.5,2.60669341]
[1745658328859,3.0,1803.8,1803.5,2.60669341]
[1745658329763,6.178,1803.9,1803.5,2.60669341]
[1745658329947,6.178,1803.9,1803.6,0.6596]
[1745658330953,0.1,1803.9,1803.6,0.6596]
[1745658331650,0.23168444,1803.8,1803.7,8.1508482]
[1745658331865,0.23168444,1803.8,1803.7,10.24562912]
[1745658332472,0.1,1803.9,1803.8,5.54385186]
[1745658332832,0.30970002,1803.9,1803.8,5.54385186]
[1745658333977,0.30970002,1803.9,1803.7,4.70147433]
[1745658334284,0.30970002,1803.9,1803.7,3.26599341]
[1745658334587,0.30970002,1803.9,1803.8,5.54385186]
[1745658334955,0.30970002,1803.9,1803.8,0.6593]
[1745658335276,0.30970002,1803.9,1803.8,6.20315186]
[1745658335865,0.1,1803.9,1803.8,6.20315186]
[1745658336089,0.29402499,1803.9,1803.8,7.63852879]
[1745658336259,0.1,1803.9,1803.8,7.63852879]
[1745658336468,0.29402499,1803.9,1803.8,7.63852879]
[1745658336664,0.1,1803.9,1803.8,7.63852879]
[1745658336865,0.29402499,1803.9,1803.8,7.63852879]
[1745658337073,0.1,1803.9,1803.8,7.63852879]
[1745658337267,9.075,1804.5,1803.9,7.85609475]
[1745658337583,9.075,1804.5,1803.9,2.31266842]
[1745658337584,0.17785624,1804.4,1803.9,2.31266842]
[1745658341692,0.17785624,1804.4,1803.9,7.85606861]
[1745658341897,3.0,1804.3,1803.9,7.85606861]
[1745658342286,0.17852606,1804.2,1803.9,13.39936914]
[1745658342586,0.17852606,1804.2,1803.9,7.85596895]
[1745658342875,0.17852606,1804.2,1804.1,0.6593]
[1745658344063,0.17852606,1804.2,1804.0,0.7855969]
[1745658344263,0.17852606,1804.2,1803.9,8.51546903]
[1745658345032,0.17852606,1804.2,1804.0,5.54320487]
[1745658345203,0.17852606,1804.2,1804.1,2.31266842]
[1745658345367,0.17852606,1804.2,1804.1,8.51489841]
[1745658345562,6.075,1804.8,1804.3,5.54223114]
[1745658345804,0.17852606,1804.7,1804.4,3.52619153]
[1745658346303,6.175,1804.9,1804.5,2.31266842]
[1745658346467,6.175,1804.9,1804.6,5.54135099]
[1745658346669,0.1,1804.9,1804.7,0.6593]
[1745658347007,0.1,1804.9,1804.8,2.31266842]
[1745658347222,0.1,1804.9,1804.8,2.60986526]
[1745658347573,0.1,1804.9,1804.8,2.31266842]
[1745658348003,1.0984,1804.9,1804.8,2.31266842]
[1745658348298,9.213732,1804.9,1804.8,2.31266842]
[1745658348503,4.0984,1804.9,1804.8,2.31266842]
[1745658349104,6.55255848,1804.9,1804.8,2.31266842]
[1745658349302,7.20781433,1804.9,1804.8,2.31266842]
[1745658349506,7.20781433,1804.9,1804.3,2.31266842]
[1745658349507,3.55,1804.8,1804.3,2.31266842]
[1745658349703,3.0,1804.6,1804.3,2.31266842]
[1745658350094,0.9984,1804.5,1804.3,2.31266842]
[1745658351607,3.0,1804.6,1804.3,2.31266842]
[1745658351800,0.1666871,1804.4,1804.3,2.31266842]
[1745658351971,3.0,1804.6,1804.3,2.31266842]
[1745658352177,0.1666871,1804.5,1804.3,2.31266842]
[1745658352409,0.1666871,1804.5,1804.4,8.51397684]
[1745658352588,0.1,1804.9,1804.6,2.14598132]
[1745658352786,0.1,1804.9,1804.6,7.68721074]
[1745658353014,0.1,1804.9,1804.7,8.34613998]
[1745658353636,0.1,1804.9,1804.7,2.80528132]
[1745658354603,0.1,1804.9,1804.8,2.14598132]
[1745658354910,0.1,1804.9,1804.8,9.18068346]
[1745658357182,0.1,1804.9,1804.8,2.14598132]
[1745658357383,24.946732,1804.9,1804.8,2.14598132]
[1745658357582,9.165,1804.9,1804.8,2.14598132]
[1745658357783,14.728458,1804.9,1804.8,2.14598132]
[1745658358082,14.063879,1804.9,1804.8,2.14598132]
[1745658358303,4.5484,1804.8,1804.4,2.14598132]
[1745658358510,0.9984,1804.5,1804.4,2.14598132]
[1745658359425,0.9984,1804.3,1803.9,2.14598132]
[1745658359579,3.0,1804.1,1803.9,2.14598132]
[1745658360000,0.9984,1804.0,1803.6,2.14598132]
[1745658360250,0.13891522,1803.9,1803.6,2.14598132]
[1745658362774,0.13891522,1803.9,1803.7,2.81458132]
[1745658363088,6.065,1804.3,1803.9,5.54340858]
[1745658363233,18.2372279,1804.9,1804.1,0.6686]
[1745658363427,9.17292556,1804.8,1804.2,2.14598132]
[1745658363666,7.0902,1804.8,1804.2,2.14598132]
[1745658364035,3.0,1804.7,1804.2,2.14598132]
[1745658364666,1.0252,1804.8,1804.2,2.14598132]
[1745658364834,3.0,1804.6,1804.2,2.14598132]
[1745658365035,1.0252,1804.5,1804.2,2.14598132]
[1745658365272,1.42772,1804.5,1804.2,2.14598132]
[1745658366655,0.12442807,1804.4,1804.2,2.14598132]
[1745658367604,0.9861,1804.3,1804.2,2.14598132]
[1745658367779,3.9861,1804.3,1804.2,2.14598132]
[1745658367981,8.9656,1804.3,1804.2,2.14598132]
[1745658368278,9.98658807,1804.3,1804.2,2.14598132]
[1745658368580,16.05258807,1804.3,1804.2,2.14598132]
[1745658368744,11.07308807,1804.3,1804.2,2.14598132]
[1745658369476,18.11498807,1804.3,1804.2,2.14598132]
[1745658369845,10.17652807,1804.3,1804.2,2.14598132]
[1745658370066,4.11052807,1804.3,1804.2,2.14598132]
[1745658370253,9.19042807,1804.3,1804.2,2.14598132]
[1745658371277,10.17652807,1804.3,1804.2,2.14598132]
[1745658371658,9.19042807,1804.3,1804.2,2.14598132]
[1745658371853,0.12442807,1804.3,1804.2,2.14598132]
[1745658372266,3.0,1804.4,1804.2,2.14598132]
[1745658372489,6.066,1804.5,1804.3,2.14598132]
[1745658372794,3.0,1804.4,1804.3,2.14598132]
[1745658373292,6.066,1804.5,1804.3,2.81458132]
[1745658373496,6.066,1804.7,1804.4,0.28145813]
[1745658373654,3.0,1804.6,1804.4,0.28145813]
[1745658376099,3.0,1804.6,1804.5,2.14598132]
[1745658376407,0.1,1804.9,1804.5,7.68751369]
[1745658376694,0.1,1804.9,1804.6,2.81458132]
[1745658376695,3.1,1804.9,1804.6,2.81458132]
[1745658377001,0.1,1804.9,1804.7,7.96843366]
[1745658377304,0.1,1804.9,1804.8,6.20938014]
[1745658377799,6.065,1805.5,1805.0,0.6686]
[1745658377980,6.065,1805.5,1805.1,2.04598132]
[1745658378384,3.0,1805.4,1805.1,2.04598132]
[1745658378909,6.056,1805.6,1805.2,5.53941763]
[1745658379192,1.0536,1806.0,1805.4,0.6686]
[1745658379494,3.0,1805.6,1805.5,2.04598132]
[1745658379655,6.055,1805.7,1805.5,2.04598132]
[1745658380351,4.0536,1805.6,1805.5,2.04598132]
[1745658380572,4.6036,1805.6,1805.5,2.04598132]
[1745658380787,5.66946,1805.6,1805.5,2.04598132]
[1745658381159,5.53928078,1805.6,1805.5,2.04598132]
[1745658381476,5.11946,1805.6,1805.5,2.04598132]
[1745658382191,4.06586,1805.6,1805.5,1.91348132]
[1745658382355,6.055,1805.7,1805.5,1.91348132]
[1745658382555,3.0,1805.6,1805.5,1.91348132]
[1745658383110,6.054,1805.7,1805.5,1.91348132]
[1745658383678,3.0,1805.6,1805.5,1.91348132]
[1745658384506,3.9054,1805.6,1805.5,1.91348132]
[1745658384704,4.8942,1805.6,1805.5,1.91348132]
[1745658385165,18.168358,1805.6,1805.5,1.91348132]
[1745658385372,14.969918,1805.6,1805.5,1.91348132]
[1745658385669,11.224382,1805.6,1805.0,1.91348132]
[1745658385900,1.1224382,1805.5,1805.0,1.91348132]
[1745658386074,0.10552787,1805.5,1805.0,1.91348132]
[1745658386513,0.9888,1805.4,1805.0,1.91348132]
[1745658386865,0.10837142,1805.3,1805.0,1.91348132]
[1745658387062,3.0,1805.1,1805.0,1.91348132]
[1745658387467,0.1,1805.9,1805.0,1.91348132]
[1745658387762,0.9888,1805.6,1805.1,1.91348132]
[1745658392236,3.0,1805.2,1805.1,1.91348132]
[1745658394017,6.053,1805.3,1805.1,1.91348132]
[1745658394242,3.0,1805.2,1805.1,1.91348132]
[1745658394748,1.0543,1805.6,1805.1,2.58628132]
[1745658395039,3.0,1805.4,1805.1,2.58628132]
[1745658395242,3.9054,1805.4,1805.1,1.91348132]
[1745658395545,1.0543,1805.3,1805.1,1.91348132]
[1745658396640,0.10803697,1805.2,1805.1,1.91348132]
[1745658397144,6.054,1805.5,1805.1,2.58628132]
[1745658397339,0.10803697,1805.2,1805.1,2.58628132]
[1745658398050,1.0543,1805.8,1805.1,8.12597067]
[1745658398253,6.154,1805.9,1805.2,8.93829504]
[1745658398430,6.154,1805.9,1805.3,1.91348132]
[1745658398633,6.154,1805.9,1805.4,0.6728]
[1745658399136,3.0,1805.8,1805.4,0.6728]
[1745658400308,3.0,1805.8,1805.5,1.91348132]
[1745658400615,3.0,1805.8,1805.6,1.91348132]
[1745658404535,3.9154,1805.8,1805.6,1.91348132]
[1745658405739,3.0,1805.6,1805.1,0.6728]
[1745658406056,3.48809199,1805.6,1805.2,1.91348132]
[1745658406210,0.55,1805.5,1805.2,1.91348132]
[1745658406415,3.0,1805.3,1805.2,1.91348132]
[1745658408455,3.0,1805.5,1805.2,1.91348132]
[1745658409021,3.0,1805.5,1805.2,2.726093]
[1745658409264,6.042,1805.6,1805.2,2.726093]
[1745658409564,3.0,1805.5,1805.3,0.6728]
[1745658410065,6.042,1805.6,1805.4,7.45226088]
[1745658410367,6.142,1805.9,1805.4,7.45226088]
[1745658410533,6.142,1805.9,1805.5,1.91348132]
[1745658410727,6.142,1805.9,1805.6,0.6728]
[1745658410936,3.0,1805.8,1805.6,0.6728]
[1745658412730,0.1,1805.9,1805.6,0.6728]
[1745658412962,3.0,1805.8,1805.6,1.4852847]
[1745658413268,3.0,1805.8,1805.6,0.6728]
[1745658416226,3.0,1805.8,1805.5,1.91348132]
[1745658416439,1.0364,1805.7,1805.5,1.91348132]
[1745658416646,3.0,1805.8,1805.5,1.91348132]
[1745658418286,3.0,1805.8,1805.5,2.58628132]
[1745658418443,3.0,1805.8,1805.6,1.91348132]
[1745658419849,0.1,1805.9,1805.8,1.91348132]
[1745658420087,0.1,1805.9,1805.8,2.72589911]
[1745658420295,0.1,1805.9,1805.8,7.45119313]
[1745658420490,0.1,1805.9,1805.8,1.91348132]
[1745658420652,0.1,1805.9,1805.8,7.45119313]
[1745658421394,0.1,1805.9,1805.8,8.02739313]
[1745658424197,1.1183,1806.9,1805.9,5.53740517]
[1745658424356,6.04,1806.8,1806.3,5.5360313]
[1745658424549,3.0,1806.7,1806.4,1.91348132]
[1745658424752,6.04,1806.8,1806.4,7.44929019]
[1745658425255,6.04,1806.8,1806.5,0.5762]
[1745658425601,0.1,1806.9,1806.6,1.91348132]
[1745658427898,0.1,1806.9,1806.7,0.5762]
[1745658428061,0.1,1806.9,1806.8,1.91348132]
[1745658429569,0.1,1806.9,1806.8,2.48968132]
[1745658430082,0.1,1806.9,1806.8,8.0243282]
[1745658430670,6.4489827,1807.5,1807.2,0.5762]
[1745658430863,6.4489827,1807.5,1807.3,1.81348132]
[1745658431068,3.0,1807.4,1807.3,1.81348132]
[1745658431304,0.4109827,1807.5,1807.3,1.81348132]
[1745658432003,3.4109827,1807.5,1807.3,1.81348132]
[1745658432209,4.45196097,1807.5,1807.3,1.81348132]
[1745658433690,0.1084438,1807.4,1807.3,1.81348132]
[1745658439804,0.1,1807.9,1807.5,1.29405482]
[1745658441293,0.1,1807.9,1807.6,1.29405482]
[1745658441488,0.1,1807.9,1807.6,1.97669163]
[1745658442886,0.1,1807.9,1807.7,0.5762]
[1745658443086,0.1,1807.9,1807.7,6.10797672]
[1745658443289,0.1,1807.9,1807.7,6.1079249]
[1745658443508,0.1,1807.9,1807.7,0.5762]
[1745658443725,0.1,1807.9,1807.7,1.384695]
[1745658443909,0.1,1807.9,1807.8,0.5762]
[1745658445637,0.1,1807.9,1807.8,6.10778535]
[1745658448218,6.021,1808.7,1808.3,1.19405482]
[1745658448421,6.021,1808.7,1808.3,1.77025482]
[1745658448585,6.021,1808.7,1808.3,2.50030206]
[1745658448924,3.0,1808.6,1808.3,2.50030206]
[1745658449423,6.021,1808.7,1808.3,2.50030206]
[1745658449616,6.021,1808.7,1808.3,1.77025482]
[1745658449824,3.0,1808.6,1808.3,1.77025482]
[1745658450831,0.9592,1809.0,1808.4,5.52960378]
[1745658451002,3.9592,1809.0,1808.3,1.77025482]
[1745658451324,6.41089199,1809.0,1808.3,1.77025482]
[1745658451530,0.9592,1808.8,1808.3,1.19405482]
[1745658453994,3.0,1808.7,1808.3,1.19405482]
[1745658454434,0.9592,1808.8,1808.3,1.19405482]
[1745658454621,0.9592,1808.8,1808.4,1.19405482]
[1745658455543,0.1,1808.9,1808.5,0.5773]
[1745658456047,0.1,1808.9,1808.4,1.19405482]
[1745658456511,3.1,1808.9,1808.4,1.19405482]
[1745658456705,3.7586692,1808.9,1808.4,1.19405482]
[1745658457304,0.1,1808.9,1808.4,1.19405482]
[1745658458681,3.0,1808.7,1808.4,1.19405482]
[1745658458853,1.0357,1808.8,1808.4,1.19405482]
[1745658460163,0.1,1808.9,1808.5,0.5773]
[1745658460331,3.0,1808.8,1808.6,1.19405482]
[1745658460532,6.119,1808.9,1808.6,1.19405482]
[1745658460863,3.0,1808.8,1808.6,1.19405482]
[1745658463666,3.9119,1808.8,1808.6,1.19405482]
[1745658464232,3.0,1808.8,1808.6,1.19405482]
[1745658477992,3.0,1808.8,1808.7,1.19405482]
[1745658482322,4.49676129,1808.8,1808.7,1.19405482]
[1745658482504,1.0332,1808.7,1808.3,1.19405482]
[1745658482821,0.49446129,1808.5,1808.3,1.19405482]
[1745658483017,1.52766129,1808.7,1808.3,1.19405482]
[1745658483320,1.0332,1808.7,1808.3,1.19405482]
[1745658483614,0.49446129,1808.6,1808.3,1.19405482]
[1745658484425,0.90152355,1808.6,1808.3,1.19405482]
[1745658485231,0.40706226,1808.6,1808.3,1.19405482]
[1745658485440,1.0332,1808.7,1808.3,1.19405482]
[1745658485939,0.49446129,1808.6,1808.3,1.19405482]
[1745658487214,1.0332,1808.7,1808.3,1.19405482]
[1745658487744,1.44504263,1808.7,1808.3,1.19405482]
[1745658489295,0.49446129,1808.6,1808.3,1.19405482]
[1745658493062,0.49446129,1808.6,1808.0,0.5283]
[1745658493063,0.1,1808.9,1808.6,1.19405482]
[1745658493770,0.1,1808.9,1808.8,6.0568272]
[1745658493938,0.1,1808.9,1808.8,3.00032566]
[1745658494736,0.1,1808.9,1808.8,1.72235482]
[1745658495476,0.05035649,1808.9,1808.8,1.72235482]
[1745658495675,0.829485,1809.7,1808.8,1.72235482]
[1745658495676,0.1,1809.9,1809.3,5.52683019]
[1745658495835,0.1,1809.9,1809.4,7.24887504]